Cogmind - Beta 16.1 @@@ ROGUE MODE // 2026.02.21 @ 22:39:42 Player: Kaisercar Result: Destroyed by as-09786 with Assembled Heavy Rifle Performance ------------- Evolutions (0) 0 Regions Visited (2) 400 Robots Destroyed (24) 120 Value Destroyed (373) 373 Prototype IDs (0) 0 Alien Tech Used (0) 0 Bonus (-222) -222 TOTAL SCORE: 671 Bonus ------- Follower Combat Kills 14 Friendly Fire -236 Cogmind --------- Core Integrity 0/250 Matter 206/300 Energy 74/100 System Corruption 0% Temperature Cool (0) Movement Hovering (480) Ox7 Location -10/Mines Parts ------- > --- POWER (1) -------- (None) > --- PROPULSION (2) --- Hover Unit > --- UTILITY (2) ------ High-capacity Storage Unit Core Shielding > --- WEAPON (2) ------- Grenade Launcher > --- INVENTORY (20) --- Hover Unit Hover Unit Improved Heat Sink Large Storage Unit High-capacity Matter Pod (0) Structural Scanner Sensor Array Seismic Detector Core Shielding Core Shielding Utility Shielding Medium Armor Plating Beam Cannon Assault Rifle Assault Rifle Assault Rifle Heavy Hammer Peak State ------------ > --- POWER ------------ Ion Engine > --- PROPULSION ------- Light Treads Light Treads > --- UTILITY ---------- High-capacity Storage Unit Sensor Array > --- WEAPON ----------- Beam Rifle Heavy Hammer > --- INVENTORY -------- Hover Unit Hover Unit Hover Unit Improved Heat Sink Medium Storage Unit High-capacity Matter Pod Structural Scanner Seismic Detector Core Shielding Core Shielding Core Shielding Utility Shielding Medium Armor Plating Assault Rifle Light Cannon Light Cannon Grenade Launcher [Rating: 11] Favorites ----------- Power Ion Engine Engine Ion Engine Propulsion Light Treads Treads Light Treads Wheel Wheel Hover Unit Hover Unit Utility High-capacity Storage Unit Device Sensor Array Storage High-capacity Storage Unit Protection Core Shielding Weapon Assault Rifle Energy Gun EM Pulse Gun Ballistic Gun Assault Rifle Ballistic Cannon Light Cannon Launcher Grenade Launcher Impact Weapon Heavy Hammer Build | -11 -10 -10 ------- Run | Yrd Mat Min Slots Evolved . | . . . Power . | . . . Propulsion . | . . . Utility . | . . . Weapon . | . . . Parts Attached 22 | 7 11 4 Power 2 | 1 1 . Engine 2 | 1 1 . Core . | . . . Reactor . | . . . Propulsion 4 | 2 1 1 Treads 2 | 2 . . Leg . | . . . Wheel 1 | . 1 . Hover 1 | . . 1 Flight . | . . . Utility 6 | 2 3 1 Device 2 | 1 1 . Storage 3 | 1 2 . Processor . | . . . Hackware . | . . . Protection 1 | . . 1 Artifact . | . . . Weapon 10 | 2 6 2 Energy Gun 3 | 2 1 . Energy Cannon . | . . . Ballistic Gun 2 | . 2 . Ballistic Cannon 2 | . 2 . Launcher 2 | . . 2 Special Weapon . | . . . Impact Weapon 1 | . 1 . Slashing Weapon . | . . . Piercing Weapon . | . . . Special Melee Weapon . | . . . Unidentified Prototypes . | . . . Parts Lost 6 | . . 6 Power 1 | . . 1 Propulsion 2 | . . 2 Utility . | . . . Weapon 3 | . . 3 Highest Loss Streak 6 | . . 6 To Critical Strikes . | . . . Average Backups 14 | 3 14 19 Power . | . . . Propulsion 2 | 2 2 3 Utility 6 | . 6 10 Weapon 4 | . 4 6 Tool/Special . | . . . Unused Backups 26 | . 13 13 Power 1 | . 1 . Propulsion 5 | . 3 2 Utility 12 | . 4 8 Weapon 8 | . 5 3 Tool/Special . | . . . Average Slot Usage (%) 99 | . 99 97 Engine 13 | . 14 13 Treads 26 | . 27 14 Wheel 1 | . . 13 Device 13 | . 14 13 Storage 14 | . 14 14 Energy Gun 5 | . 6 . Ballistic Gun 9 | . 9 6 Ballistic Cannon 4 | . 3 9 Impact Weapon 7 | . 7 6 Peak Build Rating 11 | 7 11 10 Average Rating 8 | 5 9 9 On Entrance 5 | . 7 10 Avg Prop Armor Cover (%) 11 | . 13 11 Naked Turns . | . . . Heaviest Build 52 | 13 52 52 Greatest Support 40 | 40 40 10 Greatest Overweight (x) 5 | 2 5 5 Average Overweight (x) 1 | . . 5 Largest Inventory Capacity 20 | 8 20 20 Average Capacity 16 | 7 16 20 Most Carried 20 | 5 20 20 Average Carried 14 | 3 14 19 Final Capacity 20 | 8 20 20 Final Carried 20 | 5 20 17 Class Distribution -------------------- 100% | Mutant Dominant Class ---------------- Mutant | -10/Materials Mutant | -10/Mines Resources | -11 -10 -10 ----------- Run | Yrd Mat Min Matter Collected 590 | 270 273 47 Remotely . | . . . Salvage Created 505 | 86 343 76 Parts 47 | 6 35 6 Haulers Intercepted 1 | . 1 . Recyclers Shooed 1 | 1 . . Parts Field Recycled . | . . . Retrieved Matter . | . . . Parts Self-Destructed . | . . . Prevented . | . . . Parts Restored . | . . . Kills | -11 -10 -10 ------- Run | Yrd Mat Min Combat Hostiles Destroyed 14 | . 10 4 Guns 6 | . 6 . Cannons 4 | . 3 1 AOE 4 | . 1 3 Classes Destroyed 11 | 2 6 3 Worker 2 | . 2 . Tunneler 2 | 1 . 1 Hauler 1 | . 1 . Recycler 1 | 1 . . Operator 1 | . 1 . Watcher 3 | . 3 . Swarmer 7 | . 6 1 Grunt 4 | . 4 . Demolisher 1 | . . 1 Zionite 1 | . . 1 Assembled 2 | . . 2 Thug 1 | . . 1 Best Kill Streak 4 | 2 4 3 Combat Bots Only 3 | . 3 3 Max Kills in Single Turn 3 | 1 1 3 Gunslinging . | . . . Exploded 2 | . 1 2 Melee . | . . . Uniques/NPCs Destroyed . | . . . Combat | -11 -10 -10 -------- Run | Yrd Mat Min Hostile Shots Fired 84 | . 40 44 Missed 20 | . 7 13 Hits 64 | . 33 31 Projectile 64 | . 33 31 AOE 11 | . . 11 Critical Strikes 4 | . 3 1 Damage Taken 1153 | . 407 746 Core 257 | . 47 210 Absorbed by Shields . | . . . Redirected to Shielding 45 | . . 45 Core Remaining (%) 100 | 100 . . Volleys Fired 51 | 7 35 9 Largest 2 | 2 2 2 Hottest 86 | 80 86 60 Shots Fired 95 | 14 70 11 Gun 63 | 14 49 . Cannon 27 | . 21 6 Launcher 5 | . . 5 Special . | . . . Kinetic 42 | . 36 6 Thermal 18 | . 18 . Explosive 5 | . . 5 Electromagnetic 30 | 14 16 . Robot Hit Streak 7 | 4 7 4 Robot Miss Streak 5 | 4 5 2 Penetration Max . | . . . Secondary Targets . | . . . Shots Hit Robots 52 | 6 42 4 Core Hits 36 | 3 20 13 Critical Kills . | . . . Critical Parts Destroyed . | . . . Critical Strikes 2 | 1 1 . Blast 1 | . 1 . Corrupt 1 | 1 . . Melee Attacks 11 | . 11 . Impact 11 | . 11 . Slashing . | . . . Piercing . | . . . Sneak Attacks 3 | . 3 . Combat Hostiles . | . . . Follow-up Attacks . | . . . Damage Inflicted 1340 | 83 917 340 Guns 418 | 83 335 . Cannons 320 | . 234 86 Explosions 374 | . 120 254 Melee 228 | . 228 . Ramming . | . . . Kinetic 420 | . 334 86 Thermal 264 | . 264 . Explosive 254 | . . 254 Electromagnetic 174 | 83 91 . Impact 228 | . 228 . Slashing . | . . . Piercing . | . . . Highest Corruption . | . . . Average Corruption . | . . . Corruption Purged . | . . . Corruption Blocked . | . . . Overload Shots . | . . . Overflow Damage 73 | . 73 . Projectiles 5 | . 5 . Explosions . | . . . Melee 68 | . 68 . Knockbacks 6 | . 4 2 Impact . | . . . Kinetic 6 | . 4 2 Secondary . | . . . Self-Inflicted Damage 42 | . 31 11 Shots 3 | . 1 2 Rammed . | . . . Targets Rammed . | . . . Kicked . | . . . Crushed . | . . . Highest Temperature 280 | 72 280 10 Average Temperature 65 | 34 73 10 Received Heat Transfer 218 | . 198 20 Effects 2 | . 2 . Energy Bleed 2 | . 2 . Siege Activations . | . . . Martial Activations . | . . . Shielding Activations . | . . . Robots Disrupted . | . . . Combat Hostiles . | . . . Robots Corrupted 1 | . 1 . Combat Hostiles . | . . . Parts Fried 3 | . 3 . Impact Corruptions 2 | . 2 . Robots Melted . | . . . Combat Hostiles . | . . . Parts Melted . | . . . Heat Transferred 570 | . 570 . Parts Sabotaged . | . . . Parts Stolen . | . . . Parts Stripped . | . . . Power Chain Reactions 2 | . 2 . Alert | -11 -10 -10 ------- Run | Yrd Mat Min Maximum Alert Level . | . . . Low Security (%) 100 | 100 100 100 Level 1 . | . . . Level 2 . | . . . Level 3 . | . . . Level 4 . | . . . Level 5 . | . . . High Security . | . . . Max Security . | . . . Peak Influence 88 | 5 72 88 Initial 1 | . . 1 Average 14 | . 13 32 Influence Increases 484 | 10 338 136 Destroy 0b10 Robot/C 280 | . 200 80 Destroy 0b10 Robot/NC 50 | 10 35 5 Destroy Leader 68 | . 48 20 Allied During Kill 5 | . . 5 Successful Hack 12 | . 12 . Select Force Hacks 30 | . 30 . Destroy Structure 39 | . 13 26 Influence Decreases 458 | 10 334 114 Entered New Map 3 | . . 3 Time Decay 395 | 10 334 51 Lost Part 60 | . . 60 Squads Dispatched 1 | . 1 . Investigation 1 | . 1 . Extermination . | . . . Reinforcement . | . . . Assault . | . . . Garrison . | . . . Intercept . | . . . Searches Triggered . | . . . Construction Impeded . | . . . Haulers Reinforced . | . . . Active Scanning Responses . | . . . Cargo Convoy Interrupts . | . . . Stealth | -11 -10 -10 --------- Run | Yrd Mat Min Distress Signals 1 | . 1 . Communications Jammed . | . . . Distress Signals . | . . . Times Spotted 28 | . 16 12 Peak Tracking Total 12 | . 4 12 Tactical Retreats . | . . . Traps | -11 -10 -10 ------- Run | Yrd Mat Min Traps Triggered . | . . . Indirectly . | . . . Trap Hack Attempts . | . . . Triggered . | . . . Disarmed . | . . . Reprogrammed . | . . . Reused . | . . . Traps Extracted . | . . . Installed . | . . . Triggered . | . . . Machines | -11 -10 -10 ---------- Run | Yrd Mat Min Machines Disabled . | . . . Max in Single Turn . | . . . Machines Repaired . | . . . Machines Dismantled . | . . . Machines Sabotaged . | . . . Overloaded Fab Kills . | . . . Hacking | -11 -10 -10 --------- Run | Yrd Mat Min Machines Accessed 8 | . 8 . Terminals 6 | . 6 . Fabricators . | . . . Repair Stations . | . . . Recycling Units 2 | . 2 . Scanalyzers . | . . . Garrison Access . | . . . Total Hacks 17 | . 17 . Successful 10 | . 10 . Failed 6 | . 6 . Catastrophic 1 | . 1 . Database Lockouts 1 | . 1 . Manual 14 | . 14 . Terminals 13 | . 13 . Fabricators . | . . . Repair Stations . | . . . Recycling Units 4 | . 4 . Scanalyzers . | . . . Garrison Access . | . . . Terminal Hacks 1 | . 1 . Robot Analysis 1 | . 1 . Fabricator Hacks . | . . . Repair Station Hacks . | . . . Recycling Unit Hacks 2 | . 2 . Retrieve Components 2 | . 2 . Scanalyzer . | . . . Garrison Access Hacks . | . . . Unauthorized Hacks 7 | . 7 . Terminals 6 | . 6 . Botnet 1 | . 1 . Skim 5 | . 5 . Fabricators . | . . . Repair Stations . | . . . Recycling Units 1 | . 1 . Tunnel 1 | . 1 . Scanalyzers . | . . . Garrison Access . | . . . Data Cores Recovered 1 | . 1 . Used . | . . . Hacking Detections 3 | . 3 . Full Trace Events . | . . . Feedback Events . | . . . Feedback Blocked . | . . . Robot Schematics Acquired . | . . . Robots Built . | . . . Authchips . | . . . Time . | . . . Total Robot Build Rating . | . . . Part Schematics Acquired . | . . . Parts Built . | . . . Authchips . | . . . Time . | . . . Total Part Build Rating . | . . . Part Studies Acquired . | . . . Parts Repaired . | . . . Time . | . . . Parts Recycled . | . . . Recycled Matter . | . . . Retrieved Matter . | . . . Retrieved Components 11 | . 11 . Parts Scanalyzed . | . . . Part Schematics Acquired . | . . . Parts Damaged . | . . . Bothacking | -11 -10 -10 ------------ Run | Yrd Mat Min Used RIF Installer . | . . . Robots Hacked . | . . . Non-combat . | . . . Combat . | . . . Robot Hacks Applied . | . . . Relay Couplers Released . | . . . Fabnet Peak Effective % . | . . . Robots Rewired . | . . . Allies Hacked . | . . . Hacks Repelled . | . . . Allies | -11 -10 -10 -------- Run | Yrd Mat Min Total Allies 2 | . . 2 Largest Group 2 | . . 2 Highest-Rated Group 42 | . . 42 Highest-Rated Ally 31 | . . 31 Total Orders . | . . . Ally Attacks 3 | . . 3 Total Damage 42 | . . 42 Kills 2 | . . 2 Allies Corrupted . | . . . Allies Melted . | . . . Intel | -11 -10 -10 ------- Run | Yrd Mat Min Active Infowar (turns) 1821 | 23 1624 174 Sensors 1210 | . 1036 174 Seismic 611 | 23 588 . Robot Analysis Total 1 | . 1 . Derelict Logs Recovered 1 | . . 1 Drone Launches . | . . . Drone Recoveries . | . . . Exploration | -11 -10 -10 ------------- Run | Yrd Mat Min Turns Passed 1927 | 111 1624 192 Spaces Moved 797 | 52 641 104 Core 13 | 13 . . Treads 669 | 39 630 . Legs . | . . . Wheels 115 | . 11 104 Hover . | . . . Flight . | . . . Fastest Speed 50 | 50 155 155 Average Speed 197 | 145 208 155 Slowest Speed 240 | 160 240 155 Overloaded Moves . | . . . Propulsion Burnouts . | . . . Robots Hopped . | . . . Potential Cave-ins . | . . . Cave-ins Triggered . | . . . Exploration Rate (%) 41 | 4 84 36 Regions Visited 2 Branch Regions 1 Pre-discovered Areas 2 | . 2 . Known Exits Taken 1 | . 1 . Unknown Exits Taken 1 | 1 . . Scrap Searched 1 | . . 1 Spaces Dug 8 | . 8 . Terrain Destroyed 44 | . 12 32 Melee 8 | . 8 . Projectile . | . . . AOE 36 | . 4 32 Terrain Rammed . | . . . Walls Destroyed . | . . . Machines Disabled . | . . . Actions | -11 -10 -10 --------- Run | Yrd Mat Min Total 1040 | 70 849 121 Wait 92 | . 92 . Move 795 | 51 640 104 Hop . | . . . Pick Up 38 | 5 33 . Fast Attach 9 | 7 2 . Attach 3 | . . 3 Detach . | . . . Swap 17 | . 12 5 Drop 24 | . 24 . Fire 51 | 7 35 9 Melee 11 | . 11 . Ram . | . . . Kick . | . . . Crush . | . . . Escape Stasis . | . . . Rewire . | . . . Trap . | . . . Miscellaneous . | . . . Route ------- -11/Scrapyard -10/Materials (discovered 6 exits: *Mat x3 / *Min x2 / Sub) -10/Mines (discovered 2 exits: *Mat x2) History --------- Turn | Location | Event 27 | -11/Scrapyard | Discovered new exit (range 15) 112 | -11/Scrapyard | Entered Materials 156 | -10/Materials | Discovered new exit (range 16) 294 | -10/Materials | Discovered new exit (range 9) 328 | -10/Materials | Build established: Mutant 666 | -10/Materials | Discovered new exit (range 9) 1298 | -10/Materials | Discovered new exit (range 12) 1353 | -10/Materials | Central database locked down 1457 | -10/Materials | Identified exit to Mines 1492 | -10/Materials | Identified exit to Subcaves 1492 | -10/Materials | Identified exit to Materials 1517 | -10/Materials | Learned 2 Storage zone layouts 1531 | -10/Materials | Learned location of Recycling (-8) 1537 | -10/Materials | Learned 2 Mines zone layouts 1582 | -10/Materials | Learned Storage interactive machine intel 1736 | -10/Materials | Entered Mines 1903 | -10/Mines | Assembled infested the area 1908 | -10/Mines | Assisted by a Guerilla fighting off Assembled 1919 | -10/Mines | Core integrity fell below 50% 1926 | -10/Mines | Core integrity fell below 20% 1928 | -10/Mines | Destroyed by as-09786 with Assembled Heavy Rifle Last Messages --------------- 01911_ S4-CD7(h) destroyed. 01913_ The unstable cave ceiling collapses. 01914_ Ion Engine destroyed. 01914_ Wheel destroyed. 01915_ The unstable cave ceiling collapses. 01916_ Lgt. Cannon destroyed. 01916_ D-53 Grenadier destroyed. 01917_ D-53 Grenadier knocked back. 01919_ The unstable cave ceiling collapses. 01919_ as-04682 destroyed. 01919_ D-53 Grenadier destroyed. 01921_ The unstable cave ceiling collapses. 01921_ Lgt. Treads destroyed. 01923_ Grenade Launcher destroyed. 01925_ as-71335 destroyed. 01925_ as-05213 destroyed. 01926_ The unstable cave ceiling collapses. 01926_ 3 Matter crushed. 01926_ Lgt. Cannon destroyed. 01927_ The unstable cave ceiling collapses. Map ----- +----------------------------------------------------+ | ???????????????????????### % # ##??????? | | ??????????????????######## ##* #####???????? | | ??????????????????# # # #???????????? | | ??????????????????# # #???????????? | | ??????????????????# ### #???????????? | | ??????????????????# ### ###???????????? | | ??????????????????########## #?????????????? | | ???????????????????????????# #?????????????? | | ???????????????????????????# ####??????##??? | | ???????????????????????????# % ###### ##?? | | ???????????????????????????# * ! #?? | | ??????????????????????????## = !* #?? | | ??????????????????????????# * # ### ##?? | | ??????????????????????????# %[ ## #??####??? | | ??????????????????????????# ### #????????? | | ??????????????????????????## ##?# #????????? | | ???????????????????????????######??# #????????? | | ????????????? ??????????????????### #????????? | | ???????????? ????????????????## ##???????? | | ???????????? a ??#####??????## #???????? | | ???????????? % ?# # ####### < #???????? | | ???????????a a # ##???????? | | ??????????? a % ##????????? | | ????????????# a ## %######?????????? | | ?????????????# # #???????????? | | ????????????????# %ar @ # #??????????? | | ?????????????????# % #????????????? | | ?????????????????# #????????????? | | ?????????????????# # ##????????????? | | ?????????????????# ## ##?????????????? | | ?????????????????# #####?####??????????????? | | ?????????????????# ????????????????????????? | | ?????????????????# ?????????????????????????? | | ?????????????????# ??????????????????????????? | | ?????????????????## ??????????????????????????? | | ??????????????????#???????????????????????????? | | ??????????????????????????????????????????????? | | ??????????????????????????????????????????????? | | ??????????????????????????????????????????????? | | ??????????????????????????????????????????????? | | ??????????????????????????????????????????????? | | ??????????????????????????????????????????????? | | | | | | | | | | | | | | | | | +----------------------------------------------------+ Best States ------------- Heat Dissipation 25 Energy Generation 10 Energy Capacity 250 Matter Stores 300 Matter Capacity 300 Sight Range 16 Robot Scan Range 14 Terrain Scan Density 10 Core Shielding 20 Evasion (%) 40 Recoil Reduction 2 Item Schematics ----------------- None Robot Schematics ------------------ None Fabricated ------------ Nothing Repaired ---------- Nothing Studied --------- None Alien Tech Used ----------------- None Achievements -------------- None Challenges ------------ None Game ------ Seed EfficiencyResetScanner Manual? 0 Play Time 00:12:29 Cumulative 97.8 hours Start 2026.02.21 @ 22:25:19 End 2026.02.21 @ 22:39:42 Sessions 1 Manual Loads 0 Difficulty Rogue Special Mode None Game No. 125 Rogue 50 Adventurer 75 Explorer 0 Win Type - Total 4 Types 4/0/0/0/0/0/0/0/0/0 Lore% 51 Gallery% 50 Achievement% 40 Wizard Run 0 Options --------- Layout 2 ASCII 0 Keyboard 0 Movement Numpad Keybinds 0 Fullscreen 2 Font 24/Smallcaps Map View 50x44 Zoom Use 0% Tactical HUD 1 Map Filters NONE Filters NONE Steam 1 RUN: b2fb1e48-94f0-45e5-8355-562af6c1f247